fUST/lending_fUST_20260115
["ID","MTS","AMOUNT","RATE_DAILY","PERIOD"]
[401944118,1768416653859,-151.0,0.0002739,7]
[401944119,1768416653868,-151.0,0.0002739,7]
[401944120,1768416653877,-151.0,0.0002739,7]
[401944121,1768416653886,-151.0,0.0002739,7]
[401944122,1768416653896,-151.0,0.0002739,7]
[401944123,1768416653905,-151.0,0.0002739,7]
[401944124,1768416653915,-151.0,0.0002739,7]
[401944125,1768416653924,-151.0,0.0002739,7]
[401944126,1768416653934,-151.0,0.0002739,7]
[401944127,1768416653943,-151.0,0.0002739,7]
[401944128,1768416653952,-3000.0,0.00027396,14]
[401944129,1768416653962,-151.0,0.00027396,7]
[401944130,1768416653972,-151.0,0.00027396,7]
[401944131,1768416653981,-151.0,0.00027396,7]
[401944132,1768416653995,-151.0,0.00027396,7]
[401944133,1768416654004,-151.0,0.00027396,7]
[401944134,1768416654015,-151.0,0.00027396,7]
[401944135,1768416654024,-282.093229,0.00027396,7]
[401944136,1768416654035,-151.0,0.00027396,7]
[401944137,1768416654044,-186.591978,0.00027396,7]
[401944138,1768416654053,-186.591978,0.00027396,7]
[401944139,1768416654064,-186.591978,0.00027396,7]
[401944140,1768416654073,-186.591978,0.00027396,7]
[401944141,1768416654083,-302.604582,0.00027396,7]
[401944142,1768416654092,-302.604582,0.00027396,7]
[401944143,1768416654102,-151.0,0.00027396,7]
[401944144,1768416654111,-302.604582,0.00027396,7]
[401944145,1768416654121,-151.0,0.00027396,7]
[401944146,1768416654130,-302.604582,0.00027396,7]
[401944147,1768416654139,-151.0,0.00027396,7]
[401944148,1768416654148,-151.0,0.00027396,7]
[401944149,1768416654158,-856.896701,0.00027396,7]
[401944150,1768416654167,-856.896701,0.00027396,7]
[401944151,1768416654177,-856.896701,0.00027396,7]
[401944152,1768416654186,-856.896701,0.00027396,7]
[401944153,1768416654195,-280.086265,0.00027397,7]
[401944154,1768416654205,-280.086265,0.00027397,7]
[401944155,1768416654214,-280.086265,0.00027397,7]
[401944156,1768416654223,-280.086265,0.00027397,7]
[401944157,1768416654233,-277.161137,0.00027397,7]
[401944158,1768416654243,-277.161137,0.00027397,7]
[401944159,1768416654252,-151.0,0.00027397,7]
[401944160,1768416654262,-277.161137,0.00027397,7]
[401944161,1768416654271,-277.161137,0.00027397,7]
[401944162,1768416654280,-306.935561,0.00027397,7]
[401944163,1768416654289,-306.935561,0.00027397,7]
[401944164,1768416654298,-306.935561,0.00027397,7]
[401944165,1768416654307,-306.935561,0.00027397,7]
[401944166,1768416654316,-239.496216,0.00027397,7]
[401944167,1768416654326,-239.496216,0.00027397,7]
[401944168,1768416654335,-239.496216,0.00027397,7]
[401944169,1768416654344,-239.496216,0.00027397,7]
[401944170,1768416654354,-1138.584656,0.00027397,7]
[401944171,1768416654363,-1138.584656,0.00027397,7]
[401944172,1768416654372,-1138.584656,0.00027397,7]
[401944173,1768416654382,-1138.584656,0.00027397,7]
[401944174,1768416654391,-151.0,0.00027397,7]
[401944175,1768416654401,-151.0,0.00027397,7]
[401944176,1768416654411,-151.0,0.00027397,7]
[401944177,1768416654420,-352.688053,0.00027397,7]
[401944178,1768416654429,-352.688053,0.00027397,7]
[401944179,1768416654439,-352.688053,0.00027397,7]
[401944180,1768416654448,-352.688053,0.00027397,7]
[401944181,1768416654458,-258.319491,0.00027397,7]
[401944182,1768416654467,-258.319491,0.00027397,7]
[401944183,1768416654477,-258.319491,0.00027397,7]
[401944184,1768416654486,-258.319491,0.00027397,7]
[401944185,1768416654495,-151.0,0.00027397,7]
[401944186,1768416654506,-151.0,0.00027397,7]
[401944187,1768416654516,-151.0,0.00027397,7]
[401944188,1768416654526,-151.0,0.00027397,7]
[401944189,1768416654535,-151.0,0.00027397,7]
[401944190,1768416654545,-151.0,0.00027397,7]
[401944191,1768416654555,-171.177356,0.00027397,7]
[401944192,1768416654565,-171.177356,0.00027397,7]
[401944193,1768416654575,-341.283719,0.00027397,7]
[401944194,1768416654585,-341.283719,0.00027397,7]
[401944195,1768416654595,-171.177356,0.00027397,7]
[401944196,1768416654605,-341.283719,0.00027397,7]
[401944197,1768416654614,-171.177356,0.00027397,7]
[401944198,1768416654623,-341.283719,0.00027397,7]
[401944199,1768416654632,-191.490217,0.00027397,7]
[401944200,1768416654642,-677.806969,0.00027397,7]
[401944201,1768416654653,-677.806969,0.00027397,7]
[401944202,1768416654664,-677.806969,0.00027397,7]
[401944203,1768416654673,-677.806969,0.00027397,7]
[401944204,1768416654683,-151.0,0.00027397,7]
[401944205,1768416654692,-151.0,0.00027397,7]
[401944206,1768416654702,-301.20996102,0.00027397,3]
[401944207,1768416654713,-500.0,0.00027397,7]
[401944208,1768416654724,-500.0,0.00027397,10]
[401944209,1768416654734,-438.01,0.00027397,7]
[401944210,1768416654743,-650.0,0.00027397,5]
[401944211,1768416654753,-300.0,0.00027397,2]
[401944212,1768416654763,-300.0,0.00027397,2]
[401944213,1768416654772,-300.0,0.00027397,2]
[401944214,1768416654782,-300.0,0.00027397,2]
[401944215,1768416654791,-300.0,0.00027397,2]
[401944216,1768416654801,-300.0,0.00027397,2]
[401944217,1768416654811,-300.0,0.00027397,2]
[401944218,1768416654821,-300.0,0.00027397,2]
[401944219,1768416654830,-300.0,0.00027397,2]
[401944220,1768416654839,-300.0,0.00027397,2]
[401944221,1768416654849,-300.0,0.00027397,2]
[401944222,1768416654858,-300.0,0.00027397,2]
[401944223,1768416654867,-300.0,0.00027397,2]
[401944224,1768416654876,-300.0,0.00027397,2]
[401944225,1768416654886,-300.0,0.00027397,2]
[401944226,1768416654895,-300.0,0.00027397,2]
[401944227,1768416654904,-300.0,0.00027397,2]
[401944228,1768416654915,-300.0,0.00027397,2]
[401944229,1768416654925,-300.0,0.00027397,2]
[401944230,1768416654935,-300.0,0.00027397,2]
[401944231,1768416654944,-300.0,0.00027397,2]
[401944232,1768416654954,-300.0,0.00027397,2]
[401944233,1768416654965,-300.0,0.00027397,2]
[401944234,1768416654976,-300.0,0.00027397,2]
[401944235,1768416654988,-300.0,0.00027397,2]
[401944236,1768416654997,-300.0,0.00027397,2]
[401944237,1768416655007,-300.0,0.00027397,2]
[401944238,1768416655016,-300.0,0.00027397,2]
[401944239,1768416655027,-300.0,0.00027397,2]
[401944240,1768416655036,-300.0,0.00027397,2]
[401944241,1768416655045,-300.0,0.00027397,2]
[401944242,1768416655063,-300.0,0.00027397,2]
[401944243,1768416655073,-300.0,0.00027397,2]
[401944244,1768416655082,-300.0,0.00027397,2]
[401944245,1768416655094,-300.0,0.00027397,2]
[401944246,1768416655103,-300.0,0.00027397,2]
[401944247,1768416655113,-300.0,0.00027397,2]
[401944248,1768416655122,-300.0,0.00027397,2]
[401944249,1768416655132,-300.0,0.00027397,2]
[401944250,1768416655141,-300.0,0.00027397,2]
[401944251,1768416655150,-300.0,0.00027397,2]
[401944252,1768416655160,-390.771557,0.00027397,3]
[401944253,1768416655169,-390.771557,0.00027397,3]
[401944254,1768416655178,-390.771557,0.00027397,3]
[401944255,1768416655187,-390.771557,0.00027397,3]
[401944256,1768416655197,-390.771557,0.00027397,3]
[401944257,1768416655206,-390.771557,0.00027397,3]
[401944258,1768416655216,-390.771557,0.00027397,3]
[401944259,1768416655226,-390.771557,0.00027397,3]
[401944260,1768416655235,-390.771557,0.00027397,3]
[401944261,1768416655245,-390.771557,0.00027397,3]
[401944262,1768416655254,-390.771557,0.00027397,3]
[401944263,1768416655264,-390.771557,0.00027397,3]
[401944264,1768416655275,-151.0,0.00027397,7]
[401944265,1768416655287,-151.0,0.00027397,7]
[401944266,1768416655298,-151.0,0.00027397,7]
[401944267,1768416655309,-295.309906,0.00027397,7]
[401944268,1768416655320,-156.87039,0.00027397,7]
[401944269,1768416655329,-500.0,0.00027397,5]
[401944270,1768416655339,-157.45506808,0.00027397,5]
[401944271,1768416655350,-515.68473116,0.00027397,5]
[401944272,1768416655360,-156.17,0.000274,2]
[401944273,1768416655370,-31763.1,0.000274,2]
[401944274,1768416655380,-151.0,0.000274,7]
[401944275,1768416655389,-151.0,0.000274,7]
[401944276,1768416655399,-462.387637,0.000274,7]
[401944277,1768416655409,-462.387637,0.000274,7]
[401944278,1768416655419,-462.387637,0.000274,7]
[401944279,1768416655429,-462.387637,0.000274,7]
[401944280,1768416655439,-154.230394,0.000274,7]
[401944281,1768416655449,-151.0,0.000274,7]
[401944282,1768416655459,-151.0,0.000274,7]
[401944283,1768416655469,-151.0,0.000274,7]
[401944284,1768416655478,-153.5,0.000274,2]
[401944285,1768416655488,-160.0,0.00027524,7]
[401944286,1768416655498,-371.0,0.00027542,2]
[401944287,1768416655508,-767.87515318,0.00027542,23]
[401944288,1768416655519,-1041.66666667,0.000276,30]
[401944289,1768416655528,-155.57399191,0.00027609,5]
[401944290,1768416655538,-157.11492553,0.00027609,5]
[401944291,1768416655548,-369.0,0.00027641,2]
[401944292,1768416655558,-4109.9,0.00027671,4]
[401944293,1768416655568,-11434.83681078,0.00027695,2]
[401944294,1768416655577,-151.0,0.000277,7]
[401944295,1768416655587,-256.419817,0.000277,7]
[401944296,1768416655597,-151.0,0.000277,7]
[401944297,1768416655607,-11357.60810118,0.000277,3]
[401944298,1768416655617,-169.0,0.00027733,120]
[401944299,1768416655627,-369.0,0.00027735,2]
[401944300,1768416655636,-2145.3,0.000278,7]
[401944301,1768416655646,-159.0,0.00027862,120]
[401944302,1768416655656,-240.0,0.00027863,26]
[401944303,1768416655665,-2601.576623,0.00027906,30]
[401944304,1768416655674,-1054.745777,0.00027906,30]
[401944305,1768416655683,-8554.7550088,0.00027939,2]
[401944306,1768416655693,-7865.8554235,0.00027939,2]
[401944307,1768416655702,-23479.7472537,0.00027939,2]
[401944308,1768416655712,-1000.0,0.00027945,5]
[401944309,1768416655721,-750.0,0.00027945,5]
[401944310,1768416655732,-250.0,0.00027945,5]
[401944311,1768416655742,-250.0,0.00027945,5]
[401944312,1768416655751,-2000.0,0.00027955,7]
[401944313,1768416655761,-369.0,0.00027961,2]
[401944314,1768416655770,-1193.52467753,0.0002799,2]
[401944315,1768416655779,-191330.95511252,0.00027998,2]
[401944316,1768416655788,-15332.50098657,0.00028,2]
[401944317,1768416655798,-2583.99413959,0.00028,2]
[401944318,1768416655807,-520.63777123,0.00028,2]
[401944319,1768416655816,-1257.80356366,0.00028,120]
[401944320,1768416655826,-300.0,0.00028,120]
[401944321,1768416655835,-1041.66666667,0.00028,3]
[401944322,1768416655844,-369.0,0.00028005,2]
[401944323,1768416655854,-369.0,0.00028097,7]
[401944324,1768416655863,-371.0,0.0002811,2]
[401944325,1768416655872,-160.0,0.00028146,8]
[401944326,1768416655882,-778.0,0.000282,2]
[401944327,1768416655892,-373.0,0.00028217,2]
[401944328,1768416655901,-3000.0,0.00028218,14]
[401944329,1768416655912,-369.0,0.00028287,7]
[401944330,1768416655924,-4527.87,0.000283,14]
[401944331,1768416655934,-767.87515318,0.00028352,25]
[401944332,1768416655943,-155.57399191,0.00028463,5]
[401944333,1768416655953,-163.33303318,0.00028478,7]
[401944334,1768416655963,-850.0,0.00028493,5]
[401944335,1768416655973,-1349.80836073,0.00028493,5]
[401944336,1768416655985,-350.0,0.00028493,5]
[401944337,1768416655996,-350.0,0.00028493,5]
[401944338,1768416656006,-369.0,0.00028494,7]
[401944339,1768416656016,-166322.98587106,0.000285,7]
[401944340,1768416656028,-151.0,0.000285,7]
[401944341,1768416656048,-214.05,0.000285,7]
[401944342,1768416656068,-243.5,0.000285,7]
[401944343,1768416656090,-269.235719,0.000285,7]
[401944344,1768416656111,-151.0,0.000285,7]
[401944345,1768416656131,-462.387637,0.000285,7]
[401944346,1768416656144,-462.387637,0.000285,7]
[401944347,1768416656159,-462.387637,0.000285,7]
[401944348,1768416656171,-462.387637,0.000285,7]
[401944349,1768416656183,-151.0,0.000285,7]
[401944350,1768416656196,-151.0,0.000285,7]
[401944351,1768416656207,-151.0,0.000285,7]
[401944352,1768416656218,-280.086265,0.000285,7]
[401944353,1768416656229,-280.086265,0.000285,7]
[401944354,1768416656239,-280.086265,0.000285,7]
[401944355,1768416656249,-280.086265,0.000285,7]
[401944356,1768416656260,-277.161137,0.000285,7]
[401944357,1768416656273,-277.161137,0.000285,7]
[401944358,1768416656287,-277.161137,0.000285,7]
[401944359,1768416656308,-277.161137,0.000285,7]
[401944360,1768416656328,-306.935561,0.000285,7]
[401944361,1768416656347,-306.935561,0.000285,7]
[401944362,1768416656360,-306.935561,0.000285,7]
[401944363,1768416656370,-306.935561,0.000285,7]
[401944364,1768416656382,-239.496216,0.000285,7]
[401944365,1768416656396,-239.496216,0.000285,7]
[401944366,1768416656407,-239.496216,0.000285,7]
[401944367,1768416656419,-239.496216,0.000285,7]
[401944368,1768416656430,-1138.584656,0.000285,7]
[401944369,1768416656440,-390.771557,0.000285,3]
[401944370,1768416656451,-1138.584656,0.000285,7]
[401944371,1768416656461,-390.771557,0.000285,3]
[401944372,1768416656470,-1138.584656,0.000285,7]
[401944373,1768416656480,-390.771557,0.000285,3]
[401944374,1768416656491,-1138.584656,0.000285,7]
[401944375,1768416656500,-390.771557,0.000285,3]
[401944376,1768416656512,-151.0,0.000285,7]
[401944377,1768416656522,-151.0,0.000285,7]
[401944378,1768416656533,-182.075768,0.000285,7]
[401944379,1768416656545,-352.688053,0.000285,7]
[401944380,1768416656555,-352.688053,0.000285,7]
[401944381,1768416656566,-352.688053,0.000285,7]
[401944382,1768416656576,-352.688053,0.000285,7]
[401944383,1768416656586,-258.319491,0.000285,7]
[401944384,1768416656596,-258.319491,0.000285,7]
[401944385,1768416656608,-258.319491,0.000285,7]
[401944386,1768416656619,-258.319491,0.000285,7]
[401944387,1768416656631,-151.0,0.000285,7]
[401944388,1768416656642,-151.0,0.000285,7]
[401944389,1768416656653,-151.0,0.000285,7]
[401944390,1768416656665,-235.000068,0.000285,7]
[401944391,1768416656676,-158.985841,0.000285,7]
[401944392,1768416656686,-171.177356,0.000285,7]
[401944393,1768416656696,-171.177356,0.000285,7]
[401944394,1768416656708,-341.283719,0.000285,7]
[401944395,1768416656719,-341.283719,0.000285,7]
[401944396,1768416656729,-171.177356,0.000285,7]
[401944397,1768416656740,-341.283719,0.000285,7]
[401944398,1768416656750,-171.177355,0.000285,7]
[401944399,1768416656763,-341.283722,0.000285,7]
[401944400,1768416656775,-677.806969,0.000285,7]
[401944401,1768416656786,-677.806969,0.000285,7]
[401944402,1768416656796,-677.806969,0.000285,7]
[401944403,1768416656807,-677.80697,0.000285,7]
[401944404,1768416656818,-151.0,0.000285,7]
[401944405,1768416656829,-151.0,0.000285,7]
[401944406,1768416656840,-259.047216,0.000285,7]
[401944407,1768416656851,-259.047216,0.000285,7]
[401944408,1768416656860,-259.047216,0.000285,7]
[401944409,1768416656870,-1570.773702,0.000285,7]
[401944410,1768416656880,-259.047209,0.000285,7]
[401944411,1768416656890,-1570.773702,0.000285,7]
[401944412,1768416656900,-1570.773706,0.000285,7]
[401944413,1768416656910,-683.587352,0.000285,7]
[401944414,1768416656920,-683.587352,0.000285,7]
[401944415,1768416656930,-683.587352,0.000285,7]
[401944416,1768416656939,-683.587349,0.000285,7]
[401944417,1768416656949,-2102.360648,0.000285,7]
[401944418,1768416656959,-2102.360648,0.000285,7]
[401944419,1768416657105,-2102.360648,0.000285,7]
[401944420,1768416657115,-442.400587,0.000285,7]
[401944421,1768416657124,-2102.36064,0.000285,7]
[401944422,1768416657133,-442.400587,0.000285,7]
[401944423,1768416657142,-442.400587,0.000285,7]
[401944424,1768416657151,-151.0,0.000285,7]
[401944425,1768416657160,-442.40058,0.000285,7]
[401944426,1768416657170,-795.987765,0.000285,7]
[401944427,1768416657179,-795.987765,0.000285,7]
[401944428,1768416657190,-795.987765,0.000285,7]
[401944429,1768416657200,-795.987771,0.000285,7]
[401944430,1768416657209,-151.0,0.000285,7]
[401944431,1768416657220,-151.0,0.000285,7]
[401944432,1768416657229,-217.272847,0.000285,7]
[401944433,1768416657238,-151.0,0.000285,7]
[401944434,1768416657248,-151.0,0.000285,7]
[401944435,1768416657258,-151.0,0.000285,7]
[401944436,1768416657268,-186.591978,0.000285,7]
[401944437,1768416657278,-186.591978,0.000285,7]
[401944438,1768416657289,-186.591978,0.000285,7]
[401944439,1768416657299,-186.591982,0.000285,7]
[401944440,1768416657308,-302.604582,0.000285,7]
[401944441,1768416657317,-302.604582,0.000285,7]
[401944442,1768416657326,-151.0,0.000285,7]
[401944443,1768416657335,-302.604582,0.000285,7]
[401944444,1768416657344,-151.0,0.000285,7]
[401944445,1768416657352,-302.604586,0.000285,7]
[401944446,1768416657361,-215.302666,0.000285,7]
[401944447,1768416657370,-856.896701,0.000285,7]
[401944448,1768416657379,-856.896701,0.000285,7]
[401944449,1768416657388,-856.896701,0.000285,7]
[401944450,1768416657398,-856.8967,0.000285,7]
[401944451,1768416657407,-886.2,0.00028548,5]
[401944452,1768416657415,-31763.1,0.000286,2]
[401944453,1768416657424,-122.39854548,0.000286,7]
[401944454,1768416657804,-234.71720723,0.00016438,2]
[401944455,1768416657814,-151.0,0.00021918,2]
[401944456,1768416657823,-151.0,0.00021918,2]
[401944457,1768416657832,-45.37145452,0.000286,7]
[401944458,1768416657841,-151.0,0.000286,7]
[401944459,1768416657850,-151.0,0.000286,7]
[401944460,1768416657859,-1608.35153117,0.00028639,2]
[401944462,1768417129466,212.83991695,0.00027397,120]
[401944463,1768417203000,154.84,5e-05,2]
[401944464,1768417204326,154.83,5e-05,2]
[401944468,1768417495029,155.0,5e-05,2]
[401944471,1768417710885,212.02728156,0.00023367,120]
[401944472,1768417802366,155.16,5e-05,2]
[401944473,1768417805718,-155.16,9.5e-05,2]
[401944474,1768417805745,-553.0,9.5e-05,2]
[401944537,1768417832041,-300.0,0.00010599,2]
[401944538,1768417832050,-300.0,0.00010599,2]
[401944539,1768417832059,-1200.0,0.00010599,2]
[401944540,1768417832068,-448.72809653,0.00010599,2]
[401944541,1768417832078,-500.0,0.000106,2]
[401944542,1768417832087,-500.0,0.000106,2]
[401944543,1768417832097,-500.0,0.000106,2]
[401944544,1768417832106,-500.0,0.000106,2]
[401944545,1768417832115,-484.3022425,0.000106,2]
[401944546,1768417832124,-500.0,0.000106,2]
[401944547,1768417832134,-592.08011074,0.000106,2]
[401944548,1768417832144,-500.0,0.000106,2]
[401944549,1768417832153,-500.0,0.000106,2]
[401944550,1768417832162,-317.09152703,0.000106,2]
[401944551,1768417832172,-300.0,0.00010601,2]
[401944552,1768417832181,-300.0,0.00010601,2]
[401944553,1768417832191,-300.0,0.00010601,2]
[401944554,1768417832200,-300.0,0.00010601,2]
[401944555,1768417832209,-300.0,0.00010601,2]
[401944556,1768417832219,-300.0,0.00010601,2]
[401944557,1768417832228,-300.0,0.00010601,2]
[401944558,1768417832238,-300.0,0.00010601,2]
[401944559,1768417832247,-300.0,0.00010601,2]
[401944560,1768417832256,-300.0,0.00010601,2]
[401944561,1768417832265,-300.0,0.00010601,2]
[401944562,1768417832274,-300.0,0.00010601,2]
[401944563,1768417832284,-300.0,0.00010601,2]
[401944564,1768417832293,-300.0,0.00010601,2]
[401944565,1768417832307,-300.0,0.00010601,2]
[401944566,1768417832316,-347.049,0.00010601,2]
[401944567,1768417832326,-179.18,0.00010601,2]
[401944568,1768417832335,-154.78558409,0.00010654,2]
[401944569,1768417832345,-600.0,0.00010812,2]
[401944570,1768417832354,-420.0,0.00011651,2]
[401944571,1768417832364,-420.0,0.00011651,2]
[401944572,1768417832374,-1680.0,0.00011658,2]
[401944573,1768417832383,-720.0,0.00011893,2]
[401944574,1768417832392,-154.63095313,0.00012041,2]
[401944575,1768417832401,-94437.89166884,0.00012049,2]
[401944596,1768417838095,-905562.10833116,0.00012049,2]
[401944597,1768417838105,-6082.36948949,0.00012128,2]
[401944598,1768417838115,-1040.10398434,0.00012228,2]
[401944599,1768417838125,-495.47585115,0.00012228,2]
[401944600,1768417838134,-154.63095313,0.00012249,2]
[401944601,1768417838144,-826.67508441,0.00012329,2]
[401944602,1768417838154,-826.67508441,0.00012329,2]
[401944604,1768417838163,-826.67508441,0.00012329,2]
[401944606,1768417838174,-826.67508441,0.00012329,2]
[401944607,1768417838185,-826.67508441,0.00012329,2]
[401944608,1768417838195,-826.67508441,0.00012329,2]
[401944609,1768417838205,-826.67508441,0.00012329,2]
[401944610,1768417838214,-826.67508441,0.00012329,2]
[401944611,1768417838224,-826.67508441,0.00012329,2]
[401944612,1768417838234,-826.67508441,0.00012329,2]
[401944613,1768417838244,-826.67508441,0.00012329,2]
[401944614,1768417838253,-826.67508441,0.00012329,2]
[401944615,1768417838263,-826.67508441,0.00012329,2]
[401944616,1768417838273,-826.67508441,0.00012329,2]
[401944617,1768417838283,-826.67508441,0.00012329,2]
[401944618,1768417838293,-826.67508441,0.00012329,2]
[401944619,1768417838303,-826.67508441,0.00012329,2]
[401944620,1768417838319,-826.67508441,0.00012329,2]
[401944621,1768417838329,-826.67508441,0.00012329,2]
[401944622,1768417838340,-826.67508441,0.00012329,2]
[401944623,1768417838351,-826.67508441,0.00012329,2]
[401944624,1768417838361,-826.67508441,0.00012329,2]
[401944625,1768417838371,-826.67508441,0.00012329,2]
[401944626,1768417838381,-826.67508441,0.00012329,2]
[401944627,1768417838391,-826.67508441,0.00012329,2]
[401944628,1768417838400,-826.67508441,0.00012329,2]
[401944629,1768417838410,-826.67508441,0.00012329,2]
[401944630,1768417838420,-826.67508441,0.00012329,2]
[401944631,1768417838430,-826.67508441,0.00012329,2]
[401944632,1768417838440,-826.67508441,0.00012329,2]
[401944633,1768417838449,-826.67508441,0.00012329,2]
[401944634,1768417838459,-826.67508441,0.00012329,2]
[401944635,1768417838469,-826.67508441,0.00012329,2]
[401944636,1768417838479,-826.67508441,0.00012329,2]
[401944637,1768417838488,-826.67508441,0.00012329,2]
[401944638,1768417838498,-826.67508441,0.00012329,2]
[401944639,1768417838508,-826.67508441,0.00012329,2]
[401944640,1768417838517,-826.67508441,0.00012329,2]
[401944641,1768417838526,-826.67508441,0.00012329,2]
[401944642,1768417838535,-826.67508441,0.00012329,2]
[401944643,1768417838546,-826.67508441,0.00012329,2]
[401944644,1768417838555,-826.67508441,0.00012329,2]
[401944645,1768417838565,-826.67508441,0.00012329,2]
[401944646,1768417838574,-826.67508441,0.00012329,2]
[401944647,1768417838584,-826.67508441,0.00012329,2]
[401944648,1768417838594,-826.67508441,0.00012329,2]
[401944649,1768417838603,-826.67508441,0.00012329,2]
[401944650,1768417838613,-826.67508441,0.00012329,2]
[401944651,1768417838622,-826.67508441,0.00012329,2]
[401944652,1768417838632,-826.67508441,0.00012329,2]
[401944653,1768417838642,-826.67508441,0.00012329,2]
[401944654,1768417838652,-826.67508441,0.00012329,2]
[401944655,1768417838662,-826.67508441,0.00012329,2]
[401944656,1768417838671,-826.67508441,0.00012329,2]
[401944657,1768417838681,-826.67508441,0.00012329,2]
[401944658,1768417838690,-826.67508441,0.00012329,2]
[401944659,1768417838700,-826.67508441,0.00012329,2]
[401944660,1768417838710,-826.67508441,0.00012329,2]
[401944661,1768417838720,-826.67508441,0.00012329,2]
[401944662,1768417838730,-826.67508441,0.00012329,2]
[401944663,1768417838739,-826.67508441,0.00012329,2]
[401944664,1768417838749,-826.67508441,0.00012329,2]
[401944665,1768417838759,-826.67508441,0.00012329,2]
[401944666,1768417838769,-826.67508441,0.00012329,2]
[401944667,1768417838779,-839.72361378,0.00012329,2]
[401944668,1768417838788,-839.72361378,0.00012329,2]
[401944669,1768417838798,-839.72361378,0.00012329,2]
[401944670,1768417838807,-839.72361378,0.00012329,2]
[401944671,1768417838816,-839.72361378,0.00012329,2]
[401944672,1768417838825,-839.72361378,0.00012329,2]
[401944673,1768417838835,-839.72361378,0.00012329,2]
[401944674,1768417838844,-839.72361378,0.00012329,2]
[401944675,1768417838855,-839.72361378,0.00012329,2]
[401944676,1768417838864,-839.72361378,0.00012329,2]
[401944677,1768417838874,-839.72361378,0.00012329,2]
[401944678,1768417838885,-839.72361378,0.00012329,2]
[401944679,1768417838895,-839.72361378,0.00012329,2]
[401944680,1768417838905,-839.72361378,0.00012329,2]
[401944681,1768417838914,-839.72361378,0.00012329,2]
[401944682,1768417838924,-839.72361378,0.00012329,2]
[401944683,1768417838933,-839.72361378,0.00012329,2]
[401944684,1768417838943,-839.72361378,0.00012329,2]
[401944685,1768417838953,-839.72361378,0.00012329,2]
[401944686,1768417838962,-839.72361378,0.00012329,2]
[401944687,1768417838972,-839.72361378,0.00012329,2]
[401944688,1768417838982,-839.72361378,0.00012329,2]
[401944689,1768417838992,-839.72361378,0.00012329,2]
[401944690,1768417839002,-839.72361378,0.00012329,2]
[401944691,1768417839012,-839.72361378,0.00012329,2]
[401944692,1768417839021,-500.0,0.00012599,2]
[401944693,1768417839031,-529.49915391,0.00012599,2]
[401944694,1768417839041,-500.0,0.00012736,2]
[401944695,1768417839050,-193.25,0.00012773,2]
[401944696,1768417839059,-587.0,0.00012809,2]
[401944697,1768417839070,-403.0,0.00012809,2]
[401944698,1768417839080,-853.0,0.00012824,2]
[401944699,1768417839090,-500.0,0.00012873,2]
[401944700,1768417839102,-154.63095313,0.00012873,2]
[401944701,1768417839111,-18458.53703452,0.000129,2]
[401944702,1768417839121,-151.0,0.00013,2]
[401944703,1768417839130,-500.0,0.0001301,2]
[401944704,1768417839140,-864.0,0.00013083,2]
[401944705,1768417839150,-151.0,0.000131,2]
[401944706,1768417839162,-500.0,0.00013147,2]
[401944707,1768417839173,-6082.36948946,0.00013181,2]